bitfinex/quotes_SOLUSD_20240713
["timestamp","ask_amount","ask_price","bid_price","bid_amount"]
[1720880433512,11.49,140.04,140.02,45.0]
[1720880433731,11.49,140.05,140.03,1.4280585]
[1720880433933,11.49,140.05,140.02,45.0]
[1720880434504,11.49,140.05,140.02,46.42807438]
[1720880436038,11.49,140.05,140.02,45.0]
[1720880436206,4.9972,140.08,140.02,45.0]
[1720880436411,20.7612,140.09,140.03,1.42807133]
[1720880436629,11.49,140.05,140.03,1.42807133]
[1720880437630,11.49,140.05,140.02,45.0]
[1720880440942,102.4628,140.16,140.03,12.91802646]
[1720880440943,4.9961,140.11,140.03,12.91802646]
[1720880441126,11.49,140.08,140.04,45.0]
[1720880441307,11.49,140.08,140.05,1.42778597]
[1720880441515,4.9961,140.11,140.05,1.42778597]
[1720880441729,11.49,140.08,140.05,1.42778597]
[1720880442316,11.49,140.07,140.04,45.0]
[1720880442519,11.49,140.06,140.03,45.0]
[1720880443534,11.49,140.06,140.03,46.42795515]
[1720880444230,11.49,140.06,140.03,45.0]
[1720880444415,11.49,140.06,140.02,45.0]
[1720880444614,11.49,140.05,140.02,45.0]
[1720880445432,11.49,140.05,140.03,1.42803066]
[1720880445636,11.49,140.06,140.03,1.42803066]
[1720880447153,11.49,140.04,140.03,1.42803066]
[1720880447437,11.49,140.04,140.02,46.42811269]
[1720880448634,11.49,140.05,140.02,46.42811269]
[1720880450039,11.49,140.06,140.02,46.42811269]
[1720880450234,11.4629,140.1,140.02,46.42811269]
[1720880450538,11.49,140.06,140.02,46.42811269]
[1720880450723,11.49,140.07,140.02,46.42811269]
[1720880451134,11.49,140.06,140.02,45.0]
[1720880451340,4.9961,140.11,140.03,12.91799463]
[1720880451537,11.49,140.08,140.04,45.0]
[1720880451928,11.49,140.07,140.05,1.42779977]
[1720880452239,11.49,140.07,140.04,1.42785496]
[1720880452434,11.49,140.06,140.04,1.42785496]
[1720880453430,11.49,140.07,140.05,1.42793335]
[1720880453930,4.9964,140.1,140.05,1.42793335]
[1720880454341,11.49,140.07,140.05,1.42793335]
[1720880454535,11.49,140.07,140.04,1.42787812]
[1720880454745,11.49,140.07,140.05,1.42787824]
[1720880455124,11.49,140.06,140.04,1.42787842]
[1720880455326,11.49,140.05,140.01,15.5199]
[1720880455541,11.49,140.04,140.02,46.42805761]
[1720880455733,11.49,140.05,140.02,46.42805761]
[1720880458849,11.49,140.05,140.02,45.0]
[1720880459755,11.49,140.05,140.02,46.42806737]
[1720880460246,11.49,140.05,140.02,45.0]
[1720880461324,4.9968,140.09,140.03,1.42806003]
[1720880461525,11.49,140.06,140.03,1.42806003]
[1720880461720,15.6584,140.12,140.03,1.42806003]
[1720880461942,15.6584,140.12,140.03,12.91806003]
[1720880462133,11.49,140.08,140.04,45.0]
[1720880462336,11.49,140.08,140.05,1.42777361]
[1720880463447,4.9961,140.11,140.05,1.42777361]
[1720880463754,11.49,140.08,140.04,45.0]
[1720880463949,11.49,140.05,140.01,15.5199]
[1720880464149,11.49,140.04,140.02,1.42803374]
[1720880465926,11.49,140.04,140.02,46.42803374]
[1720880466863,11.49,140.04,140.02,45.0]
[1720880467037,11.49,140.03,139.99,6.1708]
[1720880467235,4.9982,140.05,139.97,27.5761]
[1720880467236,11.49,140.02,139.97,27.5761]
[1720880467426,11.49,140.01,139.97,16.0861]
[1720880468437,11.49,140.01,139.98,45.0]
[1720880468651,11.49,140.02,139.98,45.0]
[1720880470829,11.49,140.02,139.99,1.42836886]
[1720880471034,11.49,140.03,139.99,1.42836886]
[1720880471436,11.49,140.02,139.99,1.42836886]
[1720880472657,11.49,140.02,139.98,45.0]
[1720880472971,11.49,140.02,139.99,1.4283107]
[1720880474059,11.49,140.0,139.98,45.0]
[1720880474237,11.49,140.0,139.97,16.0861]
[1720880474437,11.49,139.99,139.97,16.0861]
[1720880475050,11.49,140.0,139.97,16.0861]
[1720880475761,11.49,139.99,139.97,16.0861]
[1720880475968,11.49,139.99,139.96,6.0481]
[1720880476361,11.49,139.99,139.94,27.5776]
[1720880476666,11.49,139.99,139.95,20.0]
[1720880476843,11.49,139.99,139.96,45.0]
[1720880477542,4.9983,140.05,139.96,45.0]
[1720880477749,11.49,139.99,139.96,45.0]
[1720880477948,4.9983,140.05,139.96,45.0]
[1720880477949,11.49,140.0,139.96,45.0]
[1720880478339,11.49,140.0,139.97,1.42857616]
[1720880478755,11.49,140.0,139.96,45.0]
[1720880479365,4.9983,140.05,139.96,45.0]
[1720880479570,11.49,140.0,139.96,45.0]
[1720880480062,11.49,139.99,139.96,45.0]
[1720880480444,11.49,139.99,139.97,1.42862427]
[1720880480645,11.49,140.0,139.97,1.42862427]
[1720880481143,11.49,140.0,139.96,45.0]
[1720880481544,11.49,139.99,139.96,45.0]
[1720880482470,11.49,139.99,139.97,1.42866003]
[1720880483553,21.3599,140.07,139.97,1.42866003]
[1720880483781,11.49,140.01,139.97,1.42866003]
[1720880484858,16.3621,140.07,139.97,1.42866003]
[1720880484859,21.3597,140.07,139.97,1.42866003]
[1720880485156,11.49,140.02,139.97,12.91866003]
[1720880485352,11.49,140.02,139.98,45.0]
[1720880485558,11.49,140.02,139.99,1.42831775]
[1720880486768,11.49,140.0,139.98,45.0]
[1720880487067,4.9983,140.05,139.98,45.0]
[1720880487247,11.49,140.01,139.99,1.42840449]
[1720880487571,11.49,140.01,139.97,45.0]
[1720880488354,11.49,140.0,139.96,45.0]
[1720880489460,11.49,139.99,139.96,45.0]
[1720880489661,11.49,140.0,139.97,1.42859417]
[1720880490273,11.49,140.0,139.96,45.0]
[1720880491470,11.49,140.0,139.97,1.42855836]
[1720880491677,11.49,139.99,139.97,1.42855836]
[1720880492373,11.49,140.0,139.97,1.42855836]
[1720880492751,11.49,140.0,139.96,45.0]
[1720880496270,4.9979,140.06,139.97,1.42854841]
[1720880496483,11.49,140.02,139.97,1.42854841]
[1720880496684,11.49,140.02,139.96,56.49]
[1720880497479,11.49,140.01,139.96,56.49]
[1720880498578,4.998,140.06,139.96,56.49]
[1720880498756,11.49,140.01,139.96,56.49]
[1720880499147,4.998,140.06,139.96,56.49]
[1720880499353,11.49,140.01,139.96,56.49]
[1720880499753,11.49,140.01,139.96,45.0]
[1720880499958,11.49,140.01,139.96,56.49]
[1720880501271,11.49,140.02,139.96,56.49]
[1720880501466,16.3621,140.07,139.97,11.49]
[1720880501467,21.3597,140.07,139.97,11.49]
[1720880501667,11.49,140.02,139.98,66.7899]
[1720880504282,11.49,140.02,139.99,1.42829895]
[1720880504579,11.49,140.02,139.98,66.7899]
[1720880504794,11.49,140.02,139.99,1.42829112]
[1720880510590,11.49,140.03,139.99,1.42829112]
[1720880511571,11.49,140.0,139.95,15.2762]
[1720880511769,11.49,139.99,139.95,15.2762]
[1720880513071,11.49,139.99,139.96,45.0]
[1720880514679,11.49,140.0,139.97,1.42859962]
[1720880515370,11.49,140.0,139.96,45.0]
[1720880515769,11.49,140.0,139.97,1.42856901]
[1720880515969,11.49,140.01,139.97,1.42856901]
[1720880516690,11.49,140.01,139.96,56.49]
[1720880517301,11.49,140.0,139.96,45.0]
[1720880517488,11.49,140.0,139.97,1.42856397]
[1720880519197,11.49,139.99,139.96,45.0]
[1720880519392,11.49,139.99,139.97,1.42865559]
[1720880520793,11.49,139.98,139.96,45.0]
[1720880520999,11.49,139.97,139.91,15.2762]
[1720880521182,11.49,139.95,139.91,15.2762]
[1720880522396,11.49,139.95,139.92,45.0]
[1720880522994,11.49,139.95,139.93,1.4289938]
[1720880523191,11.49,139.95,139.92,45.0]
[1720880523786,11.49,139.94,139.91,15.2762]
[1720880524900,11.49,140.0,139.92,1.42911698]
[1720880524901,5.0004,139.99,139.92,1.42911698]
[1720880525200,5.0001,140.0,139.93,1.42906389]
[1720880525398,15.6234,140.02,139.93,1.42906389]
[1720880525399,4.9997,140.01,139.93,1.42906389]
[1720880525596,11.49,139.97,139.93,1.42906389]
[1720880526292,11.49,139.96,139.93,1.42906389]
[1720880526682,11.49,139.96,139.92,45.0]
[1720880526879,11.49,139.95,139.92,45.0]
[1720880527095,11.49,139.95,139.93,1.42908456]
[1720880528580,11.49,139.96,139.93,1.42908456]
[1720880529080,11.49,139.96,139.92,45.0]
[1720880529501,11.49,139.95,139.92,45.0]
[1720880530298,11.49,139.95,139.93,1.42905223]
[1720880530501,11.49,139.96,139.93,1.42905223]
[1720880530800,11.49,139.95,139.92,45.0]
[1720880531403,5.0006,139.99,139.92,45.0]
[1720880531404,11.49,139.94,139.92,45.0]
[1720880531700,11.49,139.93,139.91,15.2762]
[1720880531884,11.49,139.93,139.91,16.70543873]
[1720880532398,11.49,139.95,139.91,16.70543873]
[1720880535187,5.0004,139.99,139.92,45.0]
[1720880535373,11.49,139.96,139.93,1.42909821]
[1720880537884,11.49,139.97,139.93,1.42909821]
[1720880538285,5.0001,140.0,139.92,45.0]
[1720880538286,5.0003,139.99,139.92,45.0]
[1720880538477,11.49,139.95,139.92,45.0]
[1720880538999,11.49,139.96,139.92,45.0]
[1720880539181,5.0003,139.99,139.93,1.42901021]
[1720880539386,11.49,139.96,139.93,1.42901021]
[1720880539905,5.0,140.0,139.93,1.42901021]
[1720880540210,11.49,139.97,139.93,1.42901021]
[1720880541205,11.49,139.96,139.92,45.0]
[1720880541588,11.49,139.96,139.93,1.42899048]
[1720880542605,11.49,139.95,139.92,45.0]
[1720880545106,5.0004,139.99,139.93,1.42903688]
[1720880545298,18.48402807,140.02,139.93,1.42903688]
[1720880545482,11.49,139.99,139.94,11.49]
[1720880545683,11.49,139.99,139.95,46.42872075]
[1720880545901,11.49,139.99,139.96,1.42873067]
[1720880548109,11.49,140.0,139.96,1.42873067]
[1720880549507,11.49,139.99,139.96,1.42873067]
[1720880550007,11.49,140.04,139.98,11.49]
[1720880550215,4.9978,140.06,139.99,57.9182228]
[1720880550416,11.49,140.04,139.99,57.9182228]
[1720880550789,4.9976,140.07,140.0,6.0295]
[1720880551112,11.49,140.06,140.01,57.91806291]
[1720880551411,11.49,140.06,140.02,1.42806548]
[1720880553092,4.9967,140.1,140.02,27.2495]
[1720880553294,11.49,140.07,140.03,45.0]
[1720880554711,11.49,140.07,140.04,1.42784753]
[1720880554913,6.6651,140.14,140.05,12.91784722]
[1720880555128,6.6651,140.14,140.06,56.49]
[1720880555129,11.49,140.11,140.06,56.49]
[1720880556409,11.49,140.1,140.06,45.0]
[1720880556726,27.61574196,140.18,140.07,17.18697765]
[1720880556901,4.9945,140.16,140.08,57.91736824]
[1720880557095,11.49,140.14,140.09,11.49]
[1720880557402,11.49,140.14,140.1,46.42727534]
[1720880557605,11.49,140.14,140.11,1.42727476]
[1720880558201,4.994,140.17,140.11,1.42727476]
[1720880558417,11.49,140.14,140.11,1.42727476]
[1720880559298,11.49,140.14,140.1,45.0]
[1720880559818,11.49,140.14,140.11,1.42713244]
[1720880560916,11.49,140.14,140.1,45.0]
[1720880561124,11.49,140.13,140.1,45.0]
[1720880561296,11.49,140.13,140.11,1.42727825]
[1720880562113,11.49,140.14,140.11,1.42727825]
[1720880562496,11.49,140.14,140.1,1.42722648]
[1720880562691,11.49,140.14,140.11,1.42722636]
[1720880564616,4.9936,140.18,140.11,12.91722636]
[1720880564826,11.49,140.16,140.12,45.0]
[1720880564998,11.49,140.16,140.13,1.4270667]
[1720880567327,11.49,140.14,140.09,11.49]
[1720880567500,11.49,140.13,140.1,46.4272308]
[1720880567820,11.49,140.13,140.11,1.42723625]
[1720880568002,11.49,140.13,140.09,45.0]
[1720880568420,11.49,140.13,140.1,1.42723694]
[1720880568619,11.49,140.13,140.09,45.0]
[1720880568929,11.49,140.13,140.08,56.49]
[1720880569322,11.49,140.11,140.07,15.7595]
[1720880569505,45.96,140.16,140.07,15.7595]
[1720880569506,11.49,140.1,140.07,15.7595]
[1720880570009,4.9956,140.13,140.07,15.7595]
[1720880570315,11.49,140.11,140.07,15.7595]
[1720880570516,11.49,140.11,140.08,45.0]
[1720880571200,11.49,140.1,140.08,45.0]
[1720880571813,4.9951,140.14,140.08,45.0]
[1720880572014,11.49,140.1,140.08,45.0]
[1720880572417,11.49,140.11,140.08,45.0]
[1720880573318,11.6594,140.16,140.09,1.42752696]
[1720880573511,11.49,140.12,140.09,1.42752696]
[1720880574324,11.49,140.12,140.08,45.0]
[1720880574624,57.6194,140.16,140.08,45.0]
[1720880574625,11.6594,140.16,140.08,45.0]
[1720880574924,11.49,140.12,140.08,45.0]
[1720880575128,11.49,140.11,140.08,45.0]
[1720880575502,11.49,140.1,140.08,45.0]
[1720880576199,11.49,140.11,140.08,45.0]
[1720880576416,15.2318,140.19,140.08,45.0]
[1720880576627,11.49,140.12,140.08,45.0]
[1720880577104,11.49,140.12,140.09,1.42738352]
[1720880579527,11.49,140.12,140.08,45.0]
[1720880580406,11.49,140.11,140.08,46.42741963]
[1720880581014,11.49,140.12,140.08,46.42741963]
[1720880582225,4.9951,140.14,140.08,45.0]
[1720880582429,11.49,140.12,140.08,45.0]
[1720880582730,45.96,140.16,140.07,15.7595]
[1720880582731,11.49,140.11,140.07,15.7595]
[1720880583232,11.49,140.11,140.08,1.42763774]
[1720880583419,11.49,140.11,140.07,17.18709372]
[1720880583621,11.49,140.12,140.08,46.42763782]
[1720880584124,11.49,140.13,140.08,57.91763782]
[1720880584732,21.7109,140.19,140.1,11.49]
[1720880585033,11.49,140.15,140.11,46.42720473]
[1720880585530,4.9936,140.18,140.12,1.42721007]
[1720880585706,11.49,140.15,140.12,1.42721007]
[1720880585908,4.9936,140.18,140.12,1.42721007]
[1720880586128,11.49,140.15,140.12,1.42721007]
[1720880586430,11.49,140.16,140.12,1.42721007]
[1720880587455,42.48623142,140.23,140.12,21.9298]
[1720880587742,42.48623142,140.23,140.13,57.91685279]
[1720880587743,11.49,140.18,140.13,57.91685279]
[1720880588250,11.49,140.17,140.13,45.0]
[1720880588619,4.9933,140.19,140.13,45.0]
[1720880588929,11.49,140.16,140.13,45.0]
[1720880589332,11.49,140.17,140.13,46.42701949]
[1720880589736,11.49,140.17,140.13,45.0]
[1720880590040,4.9933,140.19,140.13,46.42700875]
[1720880590436,11.49,140.17,140.13,45.0]
[1720880590621,11.49,140.17,140.13,46.42700472]
[1720880590826,4.9933,140.19,140.13,46.42700472]
[1720880591147,11.49,140.17,140.13,46.42700472]
[1720880591346,11.49,140.17,140.13,45.0]
[1720880591534,11.49,140.16,140.12,21.9298]
[1720880591742,11.49,140.15,140.12,21.9298]
[1720880591962,11.49,140.14,140.12,15.4988]
[1720880592624,11.49,140.14,140.08,22.8279]
[1720880592932,11.49,140.13,140.08,34.3179]
[1720880593117,4.994,140.17,140.08,34.3179]
[1720880593319,11.49,140.15,140.1,11.49]
[1720880593520,11.49,140.16,140.11,12.91710681]
[1720880594020,11.49,140.16,140.12,45.0]
[1720880594430,11.49,140.16,140.12,46.42709753]
[1720880595622,11.49,140.15,140.12,45.0]
[1720880595826,11.49,140.15,140.11,45.0]
[1720880596332,6.4,140.19,140.11,45.0]
[1720880596333,11.49,140.14,140.11,45.0]
[1720880596546,11.49,140.13,140.08,34.3179]
[1720880596714,11.49,140.13,140.09,45.0]
[1720880597616,11.49,140.14,140.09,56.49]
[1720880597818,11.49,140.14,140.1,1.42727998]
[1720880598024,11.49,140.14,140.11,1.4272784]
[1720880598226,11.49,140.15,140.11,1.4272784]
[1720880599343,11.49,140.15,140.09,56.49]
[1720880601023,4.9936,140.18,140.1,1.42727977]
[1720880601223,4.9936,140.18,140.11,1.42712748]
[1720880601443,11.49,140.15,140.11,45.0]
[1720880603355,11.49,140.14,140.11,45.0]
[1720880603533,11.49,140.14,140.1,45.0]
[1720880604447,11.49,140.14,140.1,46.42731962]
[1720880604626,11.49,140.14,140.11,1.42731962]
[1720880605738,11.49,140.14,140.1,56.49]
[1720880605936,11.49,140.15,140.1,56.49]
[1720880606744,11.49,140.15,140.11,1.42727931]
[1720880607761,4.994,140.17,140.1,56.49]
[1720880607931,11.49,140.14,140.1,45.0]
[1720880608344,11.49,140.14,140.11,1.42728937]
[1720880608532,11.49,140.14,140.1,45.0]
[1720880609366,11.49,140.15,140.11,1.42716686]
[1720880609666,11.49,140.15,140.1,56.49]
[1720880610262,11.49,140.15,140.11,1.42713146]
[1720880611353,11.49,140.15,140.1,56.49]
[1720880612172,4.9937,140.18,140.11,1.42705649]
[1720880612381,11.49,140.16,140.11,12.91705649]
[1720880612563,11.49,140.16,140.12,45.0]
[1720880613176,11.49,140.16,140.13,1.42704703]
[1720880613775,11.49,140.16,140.12,45.0]
[1720880614370,11.49,140.15,140.12,45.0]
[1720880614574,11.49,140.14,140.09,11.49]
[1720880614880,11.49,140.14,140.1,45.0]
[1720880615573,4.9939,140.17,140.09,45.0]
[1720880615773,4.9939,140.17,140.1,11.49]
[1720880615973,11.49,140.15,140.11,45.0]
[1720880617371,11.49,140.16,140.11,45.0]
[1720880617971,4.9939,140.17,140.11,45.0]
[1720880618297,11.49,140.15,140.11,45.0]
[1720880620591,4.9939,140.17,140.08,22.8279]
[1720880620592,4.9954,140.13,140.08,22.8279]
[1720880620771,11.49,140.12,140.08,16.3732]
[1720880622071,11.49,140.12,140.09,45.0]
[1720880622271,11.49,140.13,140.09,45.0]
[1720880622687,11.49,140.12,140.09,45.0]
[1720880623489,62.6126,140.16,140.05,16.0988]
[1720880623490,11.49,140.1,140.05,16.0988]
[1720880623670,62.6126,140.16,140.05,16.0988]
[1720880623671,11.49,140.08,140.05,16.0988]
[1720880623985,4.9957,140.12,140.05,17.52658131]
[1720880623986,11.49,140.09,140.05,17.52658131]
[1720880624363,4.9957,140.12,140.05,17.52658131]
[1720880624590,11.49,140.09,140.05,17.52658131]
[1720880624890,11.49,140.09,140.05,16.0988]
[1720880625091,11.49,140.08,140.05,16.0988]
[1720880625591,11.49,140.09,140.06,45.0]
[1720880627887,11.49,140.09,140.06,46.42773102]
[1720880628091,11.49,140.09,140.06,45.0]
[1720880628494,11.49,140.1,140.06,45.0]
[1720880628989,4.995,140.14,140.07,1.42757253]
[1720880629192,11.49,140.12,140.07,12.91757253]
[1720880629373,11.49,140.12,140.08,46.42747131]
[1720880631090,11.49,140.11,140.08,45.0]
[1720880631395,11.49,140.1,140.07,45.0]
[1720880631573,11.49,140.1,140.06,45.0]
[1720880635284,16.6526,140.16,140.06,56.49]
[1720880635492,11.49,140.11,140.06,56.49]
[1720880635690,4.9946,140.15,140.06,56.49]
[1720880635892,11.49,140.12,140.07,12.91736627]
[1720880636084,11.49,140.12,140.08,46.42736567]
[1720880636468,11.49,140.12,140.08,45.0]
[1720880637177,4.9946,140.15,140.09,1.42735302]
[1720880637374,11.49,140.12,140.09,1.42735302]
[1720880637588,28.041,140.19,140.09,1.42735302]
[1720880637896,11.49,140.14,140.1,1.42717937]
[1720880638194,11.49,140.13,140.1,45.0]
[1720880638396,11.49,140.13,140.1,46.42733275]
[1720880638704,11.49,140.13,140.11,1.42733275]
[1720880639283,11.49,140.13,140.1,45.0]
[1720880640979,11.49,140.13,140.11,1.42728114]
[1720880641588,28.041,140.19,140.11,1.42728114]
[1720880641589,4.994,140.17,140.11,1.42728114]
[1720880641797,11.49,140.14,140.1,60.5855]
[1720880642722,11.49,140.13,140.1,60.5855]
[1720880643386,4.9943,140.16,140.1,60.5855]
[1720880643584,28.041,140.19,140.1,60.5855]
[1720880643585,11.49,140.14,140.11,1.42725559]
[1720880643798,11.49,140.14,140.1,60.5855]
[1720880644693,15.5574,140.19,140.11,11.49]
[1720880644897,11.49,140.16,140.12,45.0]
[1720880645487,20.2852509,140.2,140.12,45.0]
[1720880645876,11.49,140.16,140.12,45.0]
[1720880646897,11.49,140.16,140.11,57.91705513]
[1720880647213,11.49,140.16,140.11,57.91697618]
[1720880647782,11.49,140.16,140.11,56.49]
[1720880648098,11.49,140.15,140.11,45.0]
[1720880648509,11.49,140.14,140.11,45.0]
[1720880649383,11.49,140.13,140.11,45.0]
[1720880649593,11.49,140.14,140.11,46.42720926]
[1720880650919,11.49,140.12,140.04,22.2144]
[1720880651219,4.994,140.17,140.07,11.49]
[1720880651513,11.49,140.14,140.09,11.49]
[1720880651685,11.49,140.14,140.1,1.42718282]
[1720880651891,11.49,140.13,140.09,15.7367]
[1720880652090,11.49,140.14,140.1,1.42722739]
[1720880652291,16.0138,140.18,140.1,56.49]
[1720880652292,11.49,140.15,140.1,56.49]
[1720880652703,21.0074,140.18,140.1,56.49]
[1720880652885,11.49,140.15,140.11,1.42710717]
[1720880653400,11.49,140.14,140.1,45.0]
[1720880654207,11.49,140.14,140.11,1.42722292]
[1720880654596,11.49,140.14,140.1,45.0]
[1720880654906,11.49,140.13,140.1,45.0]
[1720880655414,16.4844,140.16,140.1,45.0]
[1720880655715,11.49,140.12,140.1,45.0]
[1720880657515,50.9544,140.16,140.1,45.0]
[1720880657709,11.49,140.12,140.1,45.0]
[1720880658299,11.49,140.13,140.1,45.0]
[1720880658501,21.0075,140.18,140.11,1.4273082]
[1720880658804,11.49,140.13,140.11,1.4273082]
[1720880659020,21.0075,140.18,140.09,45.0]
[1720880659206,11.49,140.13,140.09,45.0]
[1720880659517,11.49,140.12,140.09,45.0]
[1720880659813,11.49,140.12,140.05,22.2144]
[1720880659814,11.49,140.13,140.1,1.42733543]
[1720880660023,11.49,140.13,140.11,1.42724442]
[1720880660220,11.49,140.13,140.08,56.49]
[1720880660431,21.0074,140.18,140.08,45.0]
[1720880660726,11.49,140.13,140.08,56.49]
[1720880662415,11.49,140.13,140.08,45.0]
[1720880663425,11.49,140.12,140.08,45.0]
[1720880665222,11.49,140.12,140.09,1.42738377]
[1720880665426,4.994,140.17,140.09,1.42738377]
[1720880665607,11.49,140.13,140.09,1.42738377]
[1720880667528,11.49,140.13,140.08,45.0]
[1720880667709,11.49,140.13,140.08,56.49]
[1720880667912,11.49,140.13,140.09,1.42738611]
[1720880668347,11.49,140.12,140.09,1.42738611]
[1720880669311,11.49,140.13,140.09,1.42738611]
[1720880670413,11.49,140.12,140.09,1.42738611]
[1720880671805,11.49,140.12,140.08,45.0]
[1720880672204,11.49,140.12,140.09,1.42740844]
[1720880673360,11.49,140.12,140.08,45.0]
[1720880673548,11.49,140.11,140.09,45.0]
[1720880673726,11.49,140.11,140.07,45.0]
[1720880674250,11.49,140.11,140.08,1.42752141]
[1720880674656,11.49,140.12,140.08,1.42752141]
[1720880674979,4.994,140.17,140.08,1.42752141]
[1720880675137,21.0074,140.18,140.08,12.91752141]
[1720880675341,11.49,140.14,140.09,56.49]
[1720880675645,11.49,140.14,140.1,46.42723583]
[1720880675851,11.49,140.14,140.11,1.42723644]
[1720880676246,4.9941,140.17,140.1,45.0]
[1720880676434,11.49,140.12,140.1,45.0]
[1720880677465,11.49,140.13,140.1,45.0]
[1720880677664,11.49,140.13,140.08,12.91733394]
[1720880677665,11.49,140.13,140.11,1.42729119]
[1720880678693,11.49,140.14,140.1,1.42724141]
[1720880678964,11.49,140.14,140.11,1.42723678]
[1720880679154,21.0074,140.18,140.11,1.42723678]
[1720880679349,11.49,140.15,140.11,46.42723678]
[1720880679553,11.49,140.14,140.11,46.42723678]
[1720880681684,4.9939,140.17,140.11,46.42723678]
[1720880681971,11.49,140.14,140.11,46.42723678]
[1720880685779,11.49,140.13,140.11,46.42723678]
[1720880685991,11.49,140.13,140.11,45.0]
[1720880686377,11.49,140.12,140.11,45.0]
[1720880686587,11.49,140.12,140.1,15.0079]
[1720880686784,11.49,140.11,140.07,6.4175]
[1720880688167,11.49,140.11,140.08,46.42740602]
[1720880688385,11.49,140.12,140.08,46.42740602]
[1720880689974,11.49,140.13,140.08,57.91740602]
[1720880690180,11.49,140.13,140.08,56.49]
[1720880690779,4.994,140.17,140.09,1.42732124]
[1720880691002,11.49,140.13,140.09,1.42732124]
[1720880691191,4.994,140.17,140.09,1.42732124]
[1720880691593,11.49,140.13,140.09,1.42732124]
[1720880692085,11.49,140.14,140.1,1.42731338]
[1720880692280,11.49,140.14,140.11,1.42717787]
[1720880693717,11.49,140.13,140.1,45.0]
[1720880693912,11.49,140.13,140.09,45.0]
[1720880694096,11.49,140.12,140.09,45.0]
[1720880694405,11.49,140.12,140.08,45.0]
[1720880697300,11.49,140.12,140.09,1.42737184]
[1720880697690,11.49,140.12,140.08,45.0]
[1720880698720,50.9543,140.16,140.08,45.0]
[1720880698721,11.49,140.1,140.08,45.0]
[1720880699020,11.49,140.09,140.04,17.5916]
[1720880700091,11.49,140.09,140.07,45.0]
[1720880702219,11.49,140.1,140.07,45.0]
[1720880702519,11.49,140.1,140.08,1.42761735]
[1720880703595,11.49,140.1,140.07,1.42758552]
[1720880703797,11.49,140.1,140.08,1.42758601]
[1720880704337,11.49,140.1,140.06,45.0]
[1720880704528,11.49,140.1,140.05,56.49]
[1720880705414,21.3548,140.14,140.05,56.49]
[1720880705415,11.49,140.09,140.05,45.0]
[1720880706011,11.49,140.08,140.05,45.0]
[1720880706427,11.49,140.09,140.05,45.0]
[1720880707030,11.49,140.08,140.05,45.0]
[1720880708942,11.49,140.08,140.04,45.0]
[1720880709322,11.49,140.09,140.05,1.42772441]